[Event "*** SCC Grand Prix: Titled Tuesday Blitz"]
[Site "Chess.com"]
[Date "2020.06.02"]
[Round "8"]
[White "Machidon"]
[Black "Tenamu"]
[Result "1-0"]
[WhiteElo "2506"]
[BlackElo "2342"]
[TimeControl "180+1"]
[EndTime "11:37:54 PDT"]
[Termination "Machidon won by resignation"]

1. d4 {[%clk 0:03:00]} 1... Nf6 {[%clk 0:02:59.4]} 2. Nf3 {[%clk 0:02:59.8]}
2... e6 {[%clk 0:02:59.5]} 3. c4 {[%clk 0:02:59.7]} 3... c5 {[%clk 0:02:59.8]}
4. d5 {[%clk 0:02:59.8]} 4... exd5 {[%clk 0:03:00]} 5. cxd5 {[%clk 0:03:00.7]}
5... d6 {[%clk 0:03:00.6]} 6. Nc3 {[%clk 0:03:00.9]} 6... g6 {[%clk 0:02:59.7]}
7. e4 {[%clk 0:03:01.5]} 7... Bg7 {[%clk 0:02:59.8]} 8. Be2 {[%clk 0:03:02.2]}
8... O-O {[%clk 0:02:59.7]} 9. h3 {[%clk 0:03:01.7]} 9... a6 {[%clk 0:03:00]}
10. a4 {[%clk 0:03:01.5]} 10... Re8 {[%clk 0:02:59.4]} 11. Qc2 {[%clk
0:03:01.5]} 11... Nbd7 {[%clk 0:02:57.7]} 12. O-O {[%clk 0:03:01.2]} 12... Qc7
{[%clk 0:02:56.1]} 13. Bf4 {[%clk 0:02:59.7]} 13... Rb8 {[%clk 0:02:51.2]} 14.
Bh2 {[%clk 0:02:54.9]} 14... c4 {[%clk 0:02:47.4]} 15. a5 {[%clk 0:02:42.6]}
15... b5 {[%clk 0:02:42.3]} 16. axb6 {[%clk 0:02:42]} 16... Rxb6 {[%clk
0:02:41]} 17. Nd2 {[%clk 0:02:36.1]} 17... Rb4 {[%clk 0:02:33.8]} 18. Ra4 {[%clk
0:02:27.9]} 18... a5 {[%clk 0:02:26.5]} 19. Nxc4 {[%clk 0:02:22.6]} 19... Rxa4
{[%clk 0:02:16.9]} 20. Qxa4 {[%clk 0:02:23.4]} 20... Nxe4 {[%clk 0:02:13.5]} 21.
Nb5 {[%clk 0:02:14.3]} 21... Qc5 {[%clk 0:01:45.8]} 22. Bf3 {[%clk 0:02:02.1]}
22... Ba6 {[%clk 0:01:13.2]} 23. Nbxd6 {[%clk 0:01:55.8]} 23... Nxd6 {[%clk
0:01:07.8]} 24. Nxd6 {[%clk 0:01:56.6]} 24... Bxf1 {[%clk 0:01:06.5]} 25. Nxe8
{[%clk 0:01:56.1]} 25... Qc1 {[%clk 0:01:01.6]} 26. Qd1 {[%clk 0:01:29.7]} 26...
Qxd1 {[%clk 0:00:58.2]} 27. Bxd1 {[%clk 0:01:30.6]} 27... Bc4 {[%clk 0:00:56.5]}
28. Nxg7 {[%clk 0:01:27.8]} 28... Kxg7 {[%clk 0:00:53]} 29. d6 {[%clk
0:01:27.7]} 29... Kf6 {[%clk 0:00:51.2]} 30. Bg4 {[%clk 0:01:18.4]} 30... Bb5
{[%clk 0:00:45.7]} 31. h4 {[%clk 0:01:02.6]} 31... h5 {[%clk 0:00:44.6]} 32. Bh3
{[%clk 0:01:02.8]} 32... a4 {[%clk 0:00:39.2]} 33. f3 {[%clk 0:01:02.5]} 33...
Nc5 {[%clk 0:00:30.8]} 34. Bf4 {[%clk 0:00:57.3]} 34... Ne6 {[%clk 0:00:27.9]}
35. g3 {[%clk 0:00:47.9]} 35... Kg7 {[%clk 0:00:18.3]} 36. Kf2 {[%clk
0:00:45.5]} 36... Kf8 {[%clk 0:00:18.7]} 37. Ke3 {[%clk 0:00:41]} 37... Ke8
{[%clk 0:00:17.8]} 38. Be5 {[%clk 0:00:41.2]} 38... Kd7 {[%clk 0:00:16.8]} 39.
g4 {[%clk 0:00:41.7]} 39... Kc6 {[%clk 0:00:15]} 40. gxh5 {[%clk 0:00:37.5]}
40... gxh5 {[%clk 0:00:15.9]} 41. Bf5 {[%clk 0:00:36.5]} 41... Kd5 {[%clk
0:00:15.1]} 42. f4 {[%clk 0:00:32.9]} 42... Bd7 {[%clk 0:00:10.1]} 43. Be4+
{[%clk 0:00:31.9]} 43... Kc4 {[%clk 0:00:10.1]} 44. Bf3 {[%clk 0:00:31.4]} 44...
Kb3 {[%clk 0:00:10.1]} 45. Bxh5 {[%clk 0:00:25.6]} 45... Kb4 {[%clk 0:00:11]}
46. Bxf7 {[%clk 0:00:25.3]} 46... Kb3 {[%clk 0:00:11.9]} 47. h5 {[%clk
0:00:25.3]} 47... Kb4 {[%clk 0:00:09.7]} 48. h6 {[%clk 0:00:25.4]} 48... Nf8
{[%clk 0:00:09.2]} 49. Ke4 {[%clk 0:00:22.9]} 49... Bc6+ {[%clk 0:00:07.3]} 50.
Bd5 {[%clk 0:00:21.7]} 50... Bd7 {[%clk 0:00:08.2]} 51. f5 {[%clk 0:00:21.6]}
51... Nh7 {[%clk 0:00:08.2]} 52. Kf4 {[%clk 0:00:20.7]} 52... Kc5 {[%clk
0:00:07.7]} 53. Be6 {[%clk 0:00:19.8]} 53... Be8 {[%clk 0:00:07.8]} 54. d7
{[%clk 0:00:20]} 54... Bxd7 {[%clk 0:00:07.6]} 55. Bxd7 {[%clk 0:00:20.9]} 55...
Kd5 {[%clk 0:00:07.8]} 56. Bxa4 {[%clk 0:00:20.1]} 56... Kc4 {[%clk 0:00:07.9]}
57. Be8 {[%clk 0:00:19.2]} 57... Kd3 {[%clk 0:00:08.8]} 58. Bg6 {[%clk
0:00:19.3]} 1-0

[Event "*** SCC Grand Prix: Titled Tuesday Blitz"]
[Site "Chess.com"]
[Date "2020.06.02"]
[Round "8"]
[White "annamaja"]
[Black "ditkin25"]
[Result "0-1"]
[WhiteElo "2185"]
[BlackElo "2413"]
[TimeControl "180+1"]
[EndTime "11:37:55 PDT"]
[Termination "ditkin25 won on time"]

1. e4 {[%clk 0:03:00.9]} 1... c6 {[%clk 0:02:59.6]} 2. d4 {[%clk 0:03:00.5]}
2... d5 {[%clk 0:03:00.3]} 3. e5 {[%clk 0:02:59.6]} 3... Bf5 {[%clk 0:03:00.3]}
4. Nf3 {[%clk 0:03:00]} 4... e6 {[%clk 0:03:00.3]} 5. Be2 {[%clk 0:03:00.1]}
5... c5 {[%clk 0:03:00.8]} 6. O-O {[%clk 0:02:58.7]} 6... Nc6 {[%clk 0:02:59.4]}
7. c4 {[%clk 0:02:54.2]} 7... dxc4 {[%clk 0:02:51.4]} 8. dxc5 {[%clk 0:02:48.7]}
8... Bxc5 {[%clk 0:02:40.5]} 9. Bxc4 {[%clk 0:02:36.5]} 9... Nge7 {[%clk
0:02:36.1]} 10. Nc3 {[%clk 0:02:29.2]} 10... a6 {[%clk 0:02:18.6]} 11. a3 {[%clk
0:02:22.4]} 11... O-O {[%clk 0:01:55.7]} 12. Bg5 {[%clk 0:02:18.7]} 12... Qc7
{[%clk 0:01:49.8]} 13. b4 {[%clk 0:02:14.5]} 13... Ba7 {[%clk 0:01:42.3]} 14.
Qd6 {[%clk 0:02:09.1]} 14... Rac8 {[%clk 0:01:27.1]} 15. Ne2 {[%clk 0:01:38.4]}
15... Rfd8 {[%clk 0:01:11.4]} 16. Qxc7 {[%clk 0:01:36.2]} 16... Rxc7 {[%clk
0:01:12.3]} 17. Rac1 {[%clk 0:01:32]} 17... Bd3 {[%clk 0:01:05.4]} 18. Bxd3
{[%clk 0:01:28.8]} 18... Rxd3 {[%clk 0:01:06.3]} 19. Rfd1 {[%clk 0:01:24.5]}
19... Rcd7 {[%clk 0:01:03.5]} 20. Rxd3 {[%clk 0:01:15.6]} 20... Rxd3 {[%clk
0:01:04.4]} 21. a4 {[%clk 0:01:02.2]} 21... h6 {[%clk 0:00:59.3]} 22. Bxe7
{[%clk 0:00:52.8]} 22... Nxe7 {[%clk 0:01:00.2]} 23. Nf4 {[%clk 0:00:53]} 23...
Rb3 {[%clk 0:00:53.4]} 24. g3 {[%clk 0:00:45.4]} 24... Rxb4 {[%clk 0:00:49.6]}
25. Rc7 {[%clk 0:00:39.3]} 25... Nc6 {[%clk 0:00:23.8]} 26. Rc8+ {[%clk
0:00:24.5]} 26... Kh7 {[%clk 0:00:23.8]} 27. Rf8 {[%clk 0:00:23.1]} 27... Rb2
{[%clk 0:00:23.7]} 28. Nd3 {[%clk 0:00:16.5]} 28... Rb3 {[%clk 0:00:24.1]} 29.
Nfe1 {[%clk 0:00:15.5]} 29... Kg6 {[%clk 0:00:20.9]} 30. Nf4+ {[%clk 0:00:15.3]}
30... Kf5 {[%clk 0:00:20.8]} 31. Rxf7+ {[%clk 0:00:15.3]} 31... Kxe5 {[%clk
0:00:21.3]} 32. Rxg7 {[%clk 0:00:15.4]} 32... Nd4 {[%clk 0:00:19.5]} 33. Nfd3+
{[%clk 0:00:14.8]} 33... Kd6 {[%clk 0:00:19.2]} 34. Rg6 {[%clk 0:00:09.1]} 34...
Rb1 {[%clk 0:00:18.7]} 35. Kg2 {[%clk 0:00:07.9]} 35... Nf5 {[%clk 0:00:18.7]}
36. Nf3 {[%clk 0:00:05.4]} 36... Ra1 {[%clk 0:00:18.6]} 37. Nf4 {[%clk
0:00:05.4]} 37... Ra2 {[%clk 0:00:17.2]} 38. Rxe6+ {[%clk 0:00:05.6]} 38... Kd7
{[%clk 0:00:17.9]} 39. Re2 {[%clk 0:00:05.6]} 39... Rxa4 {[%clk 0:00:17.7]} 40.
Ne5+ {[%clk 0:00:05.7]} 40... Kc8 {[%clk 0:00:17.5]} 41. Rc2+ {[%clk 0:00:04.6]}
41... Kd8 {[%clk 0:00:17.9]} 42. Nd5 {[%clk 0:00:04.3]} 42... Nd4 {[%clk
0:00:17.3]} 43. Rd2 {[%clk 0:00:03.4]} 43... b5 {[%clk 0:00:16.9]} 44. Nf3
{[%clk 0:00:03.4]} 44... Nxf3 {[%clk 0:00:16.6]} 45. Kxf3 {[%clk 0:00:04.3]}
45... Rd4 {[%clk 0:00:16.3]} 46. Rxd4 {[%clk 0:00:03.4]} 46... Bxd4 {[%clk
0:00:17.2]} 47. Ke4 {[%clk 0:00:03.6]} 47... Bxf2 {[%clk 0:00:16.9]} 48. Nb4
{[%clk 0:00:04]} 48... a5 {[%clk 0:00:16.7]} 49. Nc6+ {[%clk 0:00:04.5]} 49...
Kc7 {[%clk 0:00:17.4]} 50. Nxa5 {[%clk 0:00:05.4]} 50... Kb6 {[%clk 0:00:18.1]}
51. Nb3 {[%clk 0:00:05.9]} 51... b4 {[%clk 0:00:17.4]} 52. g4 {[%clk 0:00:05.7]}
52... Kb5 {[%clk 0:00:17.4]} 53. Kf5 {[%clk 0:00:05.3]} 53... Kc4 {[%clk
0:00:17]} 54. Nd2+ {[%clk 0:00:05.3]} 54... Kd3 {[%clk 0:00:16.5]} 55. Nb3
{[%clk 0:00:05]} 55... Kc3 {[%clk 0:00:16.9]} 56. Nc1 {[%clk 0:00:04.5]} 56...
Kc2 {[%clk 0:00:13.6]} 57. Na2 {[%clk 0:00:01.7]} 57... b3 {[%clk 0:00:13.2]}
58. Nb4+ {[%clk 0:00:02.1]} 58... Kc3 {[%clk 0:00:11.7]} 59. Nd5+ {[%clk
0:00:02.6]} 59... Kc4 {[%clk 0:00:10.2]} 60. Nb6+ {[%clk 0:00:02.1]} 60... Bxb6
{[%clk 0:00:10]} 61. Kg6 {[%clk 0:00:01.8]} 61... Be3 {[%clk 0:00:09.9]} 62. h4
{[%clk 0:00:01.8]} 62... b2 {[%clk 0:00:10.4]} 63. g5 {[%clk 0:00:02.7]} 63...
b1=Q+ {[%clk 0:00:10.3]} 64. Kxh6 {[%clk 0:00:02.5]} 64... Qf5 {[%clk
0:00:09.2]} 0-1

[Event "*** SCC Grand Prix: Titled Tuesday Blitz"]
[Site "Chess.com"]
[Date "2020.06.02"]
[Round "8"]
[White "joksijoksi"]
[Black "Siniauski"]
[Result "0-1"]
[WhiteElo "2338"]
[BlackElo "2496"]
[TimeControl "180+1"]
[EndTime "11:37:57 PDT"]
[Termination "Siniauski won on time"]

1. d4 {[%clk 0:02:30.9]} 1... Nf6 {[%clk 0:02:58.2]} 2. c4 {[%clk 0:02:31.2]}
2... e6 {[%clk 0:02:58.1]} 3. Nc3 {[%clk 0:02:31.8]} 3... Bb4 {[%clk 0:02:57.8]}
4. f3 {[%clk 0:02:32.5]} 4... d5 {[%clk 0:02:56.4]} 5. a3 {[%clk 0:02:32.7]}
5... Bxc3+ {[%clk 0:02:56.4]} 6. bxc3 {[%clk 0:02:33.6]} 6... O-O {[%clk
0:02:56.3]} 7. cxd5 {[%clk 0:02:33.3]} 7... exd5 {[%clk 0:02:57.2]} 8. e3 {[%clk
0:02:33.4]} 8... Bf5 {[%clk 0:02:57.1]} 9. h4 {[%clk 0:02:33]} 9... Qd6 {[%clk
0:02:38.2]} 10. Kf2 {[%clk 0:02:16.5]} 10... Nbd7 {[%clk 0:02:35.2]} 11. Bd3
{[%clk 0:01:43.7]} 11... Bxd3 {[%clk 0:02:26.1]} 12. Qxd3 {[%clk 0:01:44.6]}
12... c5 {[%clk 0:02:24.8]} 13. g4 {[%clk 0:01:42.1]} 13... Rac8 {[%clk
0:02:20.6]} 14. Bd2 {[%clk 0:01:38.2]} 14... Qc7 {[%clk 0:01:58.4]} 15. g5
{[%clk 0:01:11.2]} 15... Nh5 {[%clk 0:01:54.6]} 16. Ne2 {[%clk 0:01:10]} 16...
f6 {[%clk 0:01:46.9]} 17. f4 {[%clk 0:00:38.8]} 17... cxd4 {[%clk 0:01:25.8]}
18. cxd4 {[%clk 0:00:37.3]} 18... Qc2 {[%clk 0:01:24.6]} 19. Qxc2 {[%clk
0:00:34.5]} 19... Rxc2 {[%clk 0:01:25.5]} 20. Bb4 {[%clk 0:00:31.2]} 20... Re8
{[%clk 0:01:21.5]} 21. Rac1 {[%clk 0:00:28.7]} 21... Ra2 {[%clk 0:01:14.2]} 22.
Kf3 {[%clk 0:00:25.3]} 22... Rxe2 {[%clk 0:00:57.8]} 23. Kxe2 {[%clk 0:00:25.9]}
23... Ng3+ {[%clk 0:00:58.1]} 24. Kd3 {[%clk 0:00:25]} 24... Nxh1 {[%clk
0:00:57.1]} 25. Rxh1 {[%clk 0:00:24.9]} 25... Rc8 {[%clk 0:00:56.8]} 26. Rb1
{[%clk 0:00:19.5]} 26... Kf7 {[%clk 0:00:54]} 27. Bc5 {[%clk 0:00:19.5]} 27...
b6 {[%clk 0:00:52.4]} 28. Bb4 {[%clk 0:00:19.5]} 28... Kg6 {[%clk 0:00:36.1]}
29. e4 {[%clk 0:00:18.3]} 29... dxe4+ {[%clk 0:00:27.8]} 30. Kxe4 {[%clk
0:00:19.2]} 30... Re8+ {[%clk 0:00:28.4]} 31. Kd5 {[%clk 0:00:14.9]} 31... Kf5
{[%clk 0:00:26.3]} 32. Kd6 {[%clk 0:00:15.3]} 32... Nb8 {[%clk 0:00:23.7]} 33.
d5 {[%clk 0:00:10.1]} 33... Na6 {[%clk 0:00:16.9]} 34. Kd7 {[%clk 0:00:07.1]}
34... Re4 {[%clk 0:00:14.2]} 35. d6 {[%clk 0:00:07.7]} 35... Rd4 {[%clk
0:00:13.5]} 36. Re1 {[%clk 0:00:05.9]} 36... Kxf4 {[%clk 0:00:11.5]} 37. gxf6
{[%clk 0:00:04.6]} 37... gxf6 {[%clk 0:00:11.5]} 38. Re7 {[%clk 0:00:05.3]}
38... f5 {[%clk 0:00:09.5]} 39. Ke6 {[%clk 0:00:04]} 39... Nb8 {[%clk
0:00:04.2]} 40. Rxh7 {[%clk 0:00:02.7]} 40... Nc6 {[%clk 0:00:04.1]} 41. Rc7
{[%clk 0:00:02.6]} 41... Nd8+ {[%clk 0:00:01.6]} 42. Ke7 {[%clk 0:00:02.4]}
42... a5 {[%clk 0:00:01.3]} 43. Kxd8 {[%clk 0:00:01.5]} 43... axb4 {[%clk
0:00:01.3]} 44. d7 {[%clk 0:00:01.8]} 44... bxa3 {[%clk 0:00:01.5]} 45. Rc3
{[%clk 0:00:01.7]} 45... a2 {[%clk 0:00:01.5]} 46. Ra3 {[%clk 0:00:02.1]} 46...
Rd2 {[%clk 0:00:02.1]} 47. Kc7 {[%clk 0:00:01.9]} 47... Rc2+ {[%clk 0:00:02.6]}
48. Kb7 {[%clk 0:00:02.1]} 48... Rd2 {[%clk 0:00:02.9]} 49. Kc7 {[%clk
0:00:02.4]} 49... Rc2+ {[%clk 0:00:03.1]} 50. Kb7 {[%clk 0:00:02.8]} 50... Rd2
{[%clk 0:00:03.6]} 51. Kxb6 {[%clk 0:00:03.4]} 51... Rxd7 {[%clk 0:00:03.5]} 52.
Rxa2 {[%clk 0:00:04.1]} 52... Kg4 {[%clk 0:00:03.1]} 53. Ra4+ {[%clk 0:00:04.6]}
53... f4 {[%clk 0:00:03.7]} 54. Kc6 {[%clk 0:00:04.8]} 54... Rd1 {[%clk
0:00:03.6]} 55. h5 {[%clk 0:00:03.9]} 55... Rh1 {[%clk 0:00:03.7]} 56. Kd5
{[%clk 0:00:03.8]} 56... Rxh5+ {[%clk 0:00:03.9]} 57. Ke4 {[%clk 0:00:04.3]}
57... Rh3 {[%clk 0:00:04.3]} 58. Ra8 {[%clk 0:00:02.5]} 58... Re3+ {[%clk
0:00:04.2]} 59. Kd4 {[%clk 0:00:03.2]} 59... Re7 {[%clk 0:00:04.2]} 60. Rg8+
{[%clk 0:00:02.9]} 60... Kf3 {[%clk 0:00:04.5]} 61. Kd3 {[%clk 0:00:03.5]} 61...
Rd7+ {[%clk 0:00:04.3]} 62. Kc2 {[%clk 0:00:03.1]} 62... Ke3 {[%clk 0:00:04.8]}
0-1

[Event "*** SCC Grand Prix: Titled Tuesday Blitz"]
[Site "Chess.com"]
[Date "2020.06.02"]
[Round "8"]
[White "grzechu96"]
[Black "youngKID"]
[Result "1-0"]
[WhiteElo "2646"]
[BlackElo "2756"]
[TimeControl "180+1"]
[EndTime "11:37:59 PDT"]
[Termination "grzechu96 won on time"]

1. e4 {[%clk 0:03:00.9]} 1... c5 {[%clk 0:02:59.6]} 2. Nf3 {[%clk 0:03:00.5]}
2... Nc6 {[%clk 0:02:59.7]} 3. Bb5 {[%clk 0:02:57.3]} 3... g6 {[%clk 0:02:59]}
4. Bxc6 {[%clk 0:02:54.8]} 4... dxc6 {[%clk 0:02:58.3]} 5. d3 {[%clk 0:02:55.1]}
5... Bg7 {[%clk 0:02:58.2]} 6. h3 {[%clk 0:02:55.5]} 6... Nf6 {[%clk 0:02:58.2]}
7. Nc3 {[%clk 0:02:55.5]} 7... b6 {[%clk 0:02:57.8]} 8. Be3 {[%clk 0:02:46.7]}
8... O-O {[%clk 0:02:57.6]} 9. O-O {[%clk 0:02:46.8]} 9... Re8 {[%clk
0:02:53.7]} 10. Qd2 {[%clk 0:02:43.9]} 10... e5 {[%clk 0:02:51.4]} 11. Nh2
{[%clk 0:02:40.2]} 11... a5 {[%clk 0:02:43.3]} 12. a4 {[%clk 0:02:38.7]} 12...
Be6 {[%clk 0:02:42.3]} 13. f4 {[%clk 0:02:32.1]} 13... exf4 {[%clk 0:02:42.3]}
14. Bxf4 {[%clk 0:02:32.6]} 14... Qd4+ {[%clk 0:02:17.1]} 15. Be3 {[%clk
0:02:29]} 15... Qb4 {[%clk 0:02:14.8]} 16. Rab1 {[%clk 0:02:17.8]} 16... Nd7
{[%clk 0:02:05.8]} 17. Nf3 {[%clk 0:02:09.7]} 17... Ne5 {[%clk 0:01:57.3]} 18.
Kh1 {[%clk 0:01:52]} 18... Rad8 {[%clk 0:01:51.5]} 19. Nxe5 {[%clk 0:01:51.6]}
19... Bxe5 {[%clk 0:01:51.4]} 20. Bf4 {[%clk 0:01:43]} 20... Bh8 {[%clk
0:01:31.9]} 21. Bg5 {[%clk 0:01:12.8]} 21... Rd7 {[%clk 0:01:19.4]} 22. Bf6
{[%clk 0:00:47.8]} 22... Bxf6 {[%clk 0:01:19.4]} 23. Rxf6 {[%clk 0:00:48.7]}
23... Red8 {[%clk 0:01:07.6]} 24. Qf4 {[%clk 0:00:17.8]} 24... c4 {[%clk
0:01:03.7]} 25. dxc4 {[%clk 0:00:14.5]} 25... Qxc4 {[%clk 0:01:04]} 26. Rf1
{[%clk 0:00:14.6]} 26... b5 {[%clk 0:00:50.3]} 27. axb5 {[%clk 0:00:14.4]} 27...
cxb5 {[%clk 0:00:51.2]} 28. Nd5 {[%clk 0:00:08.5]} 28... Bxd5 {[%clk 0:00:50.1]}
29. exd5 {[%clk 0:00:09]} 29... Qxd5 {[%clk 0:00:45.3]} 30. c3 {[%clk
0:00:09.2]} 30... Re8 {[%clk 0:00:32.6]} 31. Qf2 {[%clk 0:00:07.4]} 31... a4
{[%clk 0:00:28.9]} 32. Rf4 {[%clk 0:00:07.1]} 32... Re4 {[%clk 0:00:17.1]} 33.
Rxe4 {[%clk 0:00:06.4]} 33... Qxe4 {[%clk 0:00:17.4]} 34. Re1 {[%clk 0:00:06.9]}
34... Qa8 {[%clk 0:00:12.3]} 35. Qe3 {[%clk 0:00:07.2]} 35... Qd8 {[%clk
0:00:10.9]} 36. Qe8+ {[%clk 0:00:07.1]} 36... Kg7 {[%clk 0:00:10.6]} 37. Qxd8
{[%clk 0:00:07.3]} 37... Rxd8 {[%clk 0:00:11.5]} 38. Re5 {[%clk 0:00:07.8]}
38... Rb8 {[%clk 0:00:09.3]} 39. Kg1 {[%clk 0:00:07.9]} 39... Kf6 {[%clk
0:00:09.6]} 40. Rc5 {[%clk 0:00:08.1]} 40... Ke6 {[%clk 0:00:09.8]} 41. Rc6+
{[%clk 0:00:06.2]} 41... Kd7 {[%clk 0:00:10.2]} 42. Ra6 {[%clk 0:00:06.1]} 42...
Rb7 {[%clk 0:00:09.8]} 43. Kf2 {[%clk 0:00:05.7]} 43... Kc7 {[%clk 0:00:08]} 44.
Ke3 {[%clk 0:00:05.8]} 44... Rb8 {[%clk 0:00:06]} 45. Ra7+ {[%clk 0:00:05.6]}
45... Rb7 {[%clk 0:00:06.6]} 46. Ra6 {[%clk 0:00:06.1]} 46... h5 {[%clk
0:00:04.3]} 47. g4 {[%clk 0:00:06]} 47... hxg4 {[%clk 0:00:03.7]} 48. hxg4
{[%clk 0:00:06.9]} 48... Rb6 {[%clk 0:00:03.8]} 49. Ra7+ {[%clk 0:00:07]} 49...
Rb7 {[%clk 0:00:04.3]} 50. Ra6 {[%clk 0:00:07.7]} 50... Kb8 {[%clk 0:00:04.8]}
51. g5 {[%clk 0:00:07.4]} 51... Re7+ {[%clk 0:00:04.5]} 52. Kd3 {[%clk
0:00:06.9]} 52... Kb7 {[%clk 0:00:04.8]} 53. Rf6 {[%clk 0:00:06.3]} 53... Kc7
{[%clk 0:00:04.3]} 54. c4 {[%clk 0:00:05.9]} 54... b4 {[%clk 0:00:03.8]} 55. Ra6
{[%clk 0:00:05.8]} 55... Rd7+ {[%clk 0:00:02.6]} 56. Ke3 {[%clk 0:00:05.8]}
56... Re7+ {[%clk 0:00:02.9]} 57. Kd4 {[%clk 0:00:05.8]} 57... Rd7+ {[%clk
0:00:03]} 58. Ke3 {[%clk 0:00:05.9]} 58... Re7+ {[%clk 0:00:02.4]} 59. Kd4
{[%clk 0:00:06.4]} 59... a3 {[%clk 0:00:01.6]} 60. bxa3 {[%clk 0:00:06.1]} 60...
Rd7+ {[%clk 0:00:02.1]} 61. Ke3 {[%clk 0:00:05.5]} 61... b3 {[%clk 0:00:01.3]}
62. Ra5 {[%clk 0:00:04]} 1-0

[Event "*** SCC Grand Prix: Titled Tuesday Blitz"]
[Site "Chess.com"]
[Date "2020.06.02"]
[Round "8"]
[White "JuliaEfremova"]
[Black "CarlssonLudvig"]
[Result "1-0"]
[WhiteElo "2263"]
[BlackElo "2481"]
[TimeControl "180+1"]
[EndTime "11:38:03 PDT"]
[Termination "JuliaEfremova won by resignation"]

1. d4 {[%clk 0:03:00.9]} 1... Nf6 {[%clk 0:02:57.2]} 2. Bf4 {[%clk 0:03:01]}
2... d5 {[%clk 0:02:55.4]} 3. e3 {[%clk 0:03:00.3]} 3... c5 {[%clk 0:02:55.9]}
4. c3 {[%clk 0:02:59.3]} 4... Nc6 {[%clk 0:02:55.8]} 5. Nf3 {[%clk 0:02:57.6]}
5... Qb6 {[%clk 0:02:55.5]} 6. Qc2 {[%clk 0:02:42.4]} 6... Bf5 {[%clk
0:02:53.9]} 7. Qxf5 {[%clk 0:02:42.1]} 7... Qxb2 {[%clk 0:02:52.2]} 8. Be2
{[%clk 0:02:36.9]} 8... e6 {[%clk 0:02:35.7]} 9. Qd3 {[%clk 0:02:35.5]} 9...
Qxa1 {[%clk 0:02:30]} 10. Qc2 {[%clk 0:02:34.9]} 10... cxd4 {[%clk 0:02:22.8]}
11. O-O {[%clk 0:02:30]} 11... Be7 {[%clk 0:02:06.1]} 12. exd4 {[%clk
0:02:21.3]} 12... Ne4 {[%clk 0:02:05.3]} 13. Bd3 {[%clk 0:02:05.1]} 13... O-O
{[%clk 0:01:59.4]} 14. Bxe4 {[%clk 0:02:03.8]} 14... dxe4 {[%clk 0:02:00.3]} 15.
Nbd2 {[%clk 0:02:01]} 15... Qxf1+ {[%clk 0:02:01.2]} 16. Kxf1 {[%clk 0:01:57.7]}
16... exf3 {[%clk 0:02:02.1]} 17. Nxf3 {[%clk 0:01:58.1]} 17... Rac8 {[%clk
0:02:01.7]} 18. Qe2 {[%clk 0:01:53.2]} 18... Rfd8 {[%clk 0:01:59.1]} 19. g3
{[%clk 0:01:46.3]} 19... a6 {[%clk 0:01:56.6]} 20. Kg2 {[%clk 0:01:44.4]} 20...
Bf6 {[%clk 0:01:54.1]} 21. h4 {[%clk 0:01:42.2]} 21... Ne7 {[%clk 0:01:53.1]}
22. Bd2 {[%clk 0:01:31.7]} 22... Nd5 {[%clk 0:01:51.3]} 23. Qe1 {[%clk
0:01:18.2]} 23... Rc7 {[%clk 0:01:44.7]} 24. Ne5 {[%clk 0:01:09.2]} 24... Bxe5
{[%clk 0:01:43.6]} 25. dxe5 {[%clk 0:01:10.1]} 25... b5 {[%clk 0:01:37.9]} 26.
h5 {[%clk 0:01:09.7]} 26... Rdc8 {[%clk 0:01:18.9]} 27. h6 {[%clk 0:01:09.4]}
27... g6 {[%clk 0:01:16.4]} 28. Qe4 {[%clk 0:01:04.1]} 28... Rc4 {[%clk
0:01:14.6]} 29. Qf3 {[%clk 0:01:02.9]} 29... Ra4 {[%clk 0:01:11.5]} 30. Bg5
{[%clk 0:00:49.2]} 30... Rxa2 {[%clk 0:01:09.7]} 31. Qe4 {[%clk 0:00:36.6]}
31... Rxc3 {[%clk 0:01:06.7]} 32. Qd4 {[%clk 0:00:27.8]} 32... Rc8 {[%clk
0:00:56.3]} 33. Qa7 {[%clk 0:00:26.2]} 33... b4 {[%clk 0:00:52.9]} 34. Qb7
{[%clk 0:00:21.2]} 34... Rac2 {[%clk 0:00:52.6]} 35. Qxa6 {[%clk 0:00:20.2]}
35... b3 {[%clk 0:00:52.6]} 36. Qb7 {[%clk 0:00:13.6]} 36... b2 {[%clk
0:00:49.4]} 37. Qb5 {[%clk 0:00:11.9]} 37... Ra8 {[%clk 0:00:15.4]} 38. Qb3
{[%clk 0:00:08.9]} 38... Rac8 {[%clk 0:00:14.3]} 39. Qb7 {[%clk 0:00:08.3]}
39... Re8 {[%clk 0:00:12.1]} 40. Qb3 {[%clk 0:00:08.2]} 40... Rec8 {[%clk
0:00:09.1]} 41. Qb7 {[%clk 0:00:07.7]} 41... Kf8 {[%clk 0:00:01.9]} 42. Qb3
{[%clk 0:00:06.5]} 42... Ke8 {[%clk 0:00:02.1]} 43. Qb5+ {[%clk 0:00:05.8]}
43... R8c6 {[%clk 0:00:01.6]} 44. Qb3 {[%clk 0:00:06.7]} 44... Kd7 {[%clk
0:00:02.2]} 45. Qb7+ {[%clk 0:00:06.2]} 45... Rc7 {[%clk 0:00:03.1]} 46. Qb5+
{[%clk 0:00:05.9]} 46... R2c6 {[%clk 0:00:04]} 47. Qxb2 {[%clk 0:00:03.6]} 47...
Rc8 {[%clk 0:00:04.9]} 48. Qa3 {[%clk 0:00:03.5]} 48... R8c7 {[%clk 0:00:05.8]}
49. Qf8 {[%clk 0:00:03.2]} 49... Rc5 {[%clk 0:00:03.3]} 50. Qd8+ {[%clk
0:00:03]} 50... Kc6 {[%clk 0:00:04.2]} 51. Qe8+ {[%clk 0:00:03]} 51... Kb6
{[%clk 0:00:04.1]} 52. Qb8+ {[%clk 0:00:03.4]} 52... Ka5 {[%clk 0:00:03.8]} 53.
Bd8 {[%clk 0:00:03.8]} 53... Ka4 {[%clk 0:00:03.9]} 54. Bxc7 {[%clk 0:00:03.7]}
54... Rxc7 {[%clk 0:00:04.8]} 55. Qa8+ {[%clk 0:00:03.3]} 55... Kb4 {[%clk
0:00:05.7]} 56. Qh8 {[%clk 0:00:03.6]} 56... Kc4 {[%clk 0:00:06.6]} 57. Qxh7
{[%clk 0:00:04]} 57... Kd4 {[%clk 0:00:07.2]} 58. Qg7 {[%clk 0:00:04.5]} 58...
Rc2 {[%clk 0:00:04.6]} 59. h7 {[%clk 0:00:05.4]} 59... Ne3+ {[%clk 0:00:05.2]}
60. Kf3 {[%clk 0:00:05.4]} 60... Nf5 {[%clk 0:00:05.1]} 61. Qxf7 {[%clk
0:00:05.4]} 61... Rc3+ {[%clk 0:00:05.1]} 62. Kg2 {[%clk 0:00:05.6]} 62... Rc8
{[%clk 0:00:01.8]} 63. Qd7+ {[%clk 0:00:05.8]} 63... Kxe5 {[%clk 0:00:01.9]} 64.
Qxc8 {[%clk 0:00:06.7]} 64... Ke4 {[%clk 0:00:01.9]} 65. h8=Q {[%clk 0:00:07.4]}
65... Nd6 {[%clk 0:00:01.8]} 66. f3+ {[%clk 0:00:07.4]} 66... Kd5 {[%clk
0:00:01.9]} 67. Qcc3 {[%clk 0:00:06.4]} 67... e5 {[%clk 0:00:01.6]} 1-0